Cogmind - Beta 15 @@@ ROGUE MODE // 2025.08.03 @ 11:55:32 Player: ToBeDefined Result: Destroyed by Y-54 Guardian with Flak Gun Performance ------------- Evolutions (0) 0 Regions Visited (3) 600 Robots Destroyed (36) 180 Value Destroyed (909) 909 Prototype IDs (0) 0 Alien Tech Used (0) 0 Bonus (0) 0 TOTAL SCORE: 1689 Bonus ------- None Cogmind --------- Core Integrity 0/250 Matter 300/300 Energy 100/100 System Corruption 1% Temperature Cool (6) Movement Treading (240) Ox1 Location -7/Recycling Parts ------- > --- POWER (1) -------- (None) > --- PROPULSION (2) --- Light Treads > --- UTILITY (2) ------ Medium Storage Unit Hardened Light Armor Plating > --- WEAPON (2) ------- Particle Gun Particle Gun > --- INVENTORY (10) --- Light Nuclear Core Improved Aluminum Leg Improved Heat Sink Hardened Light Armor Plating Particle Gun Peak State ------------ > --- POWER ------------ Ion Engine > --- PROPULSION ------- Improved Aluminum Leg Improved Aluminum Leg > --- UTILITY ---------- Improved Heat Sink Medium Storage Unit > --- WEAPON ----------- Particle Gun Particle Gun > --- INVENTORY -------- Light Nuclear Core Light Treads Light Treads Light Treads Hardened Light Armor Plating Hardened Light Armor Plating Hardened Light Armor Plating Particle Gun Particle Gun Particle Gun [Rating: 14] Favorites ----------- Power Ion Engine Engine Ion Engine Propulsion Light Treads Treads Light Treads Leg Improved Aluminum Leg Utility Medium Storage Unit Device ECM Suite Storage Medium Storage Unit Protection Hardened Light Armor Plating Weapon Particle Gun Energy Gun Particle Gun Energy Cannon Beam Cannon Ballistic Gun Assault Rifle Build | -11 -10 -10 -7 ------- Run | Yrd Mat Sub Rec Slots Evolved . | . . . . Power . | . . . . Propulsion . | . . . . Utility . | . . . . Weapon . | . . . . Parts Attached 28 | 7 13 8 . Power 3 | 2 . 1 . Engine 3 | 2 . 1 . Core . | . . . . Reactor . | . . . . Propulsion 7 | 2 2 3 . Treads 5 | 2 . 3 . Leg 2 | . 2 . . Wheel . | . . . . Hover . | . . . . Flight . | . . . . Utility 8 | 1 5 2 . Device 2 | . 2 . . Storage 3 | 1 2 . . Processor . | . . . . Hackware . | . . . . Protection 3 | . 1 2 . Artifact . | . . . . Weapon 10 | 2 6 2 . Energy Gun 8 | 1 5 2 . Energy Cannon 1 | . 1 . . Ballistic Gun 1 | 1 . . . Ballistic Cannon . | . . . . Launcher . | . . . . Special Weapon . | . . . . Impact Weapon . | . . . . Slashing Weapon . | . . . . Piercing Weapon . | . . . . Special Melee Weapon . | . . . . Unidentified Prototypes . | . . . . Parts Lost 8 | . . 7 1 Power 2 | . . 1 1 Propulsion 3 | . . 3 . Utility 1 | . . 1 . Weapon 2 | . . 2 . Highest Loss Streak 2 | . . 2 1 To Critical Strikes . | . . . . Average Backups 8 | 4 9 8 5 Power 1 | . 1 1 1 Propulsion 2 | 2 2 2 1 Utility 2 | . 2 2 2 Weapon 2 | . 3 2 1 Tool/Special . | . . . . Unused Backups 14 | . 12 . 2 Power 2 | . 1 . 1 Propulsion 4 | . 4 . . Utility 3 | . 2 . 1 Weapon 5 | . 5 . . Tool/Special . | . . . . Average Slot Usage (%) 96 | . 99 85 85 Engine 13 | . 14 13 14 Treads 17 | . 18 13 14 Leg 8 | . 9 6 . Device 5 | . 6 1 . Storage 14 | . 14 14 14 Protection 8 | . 7 11 14 Energy Gun 20 | . 18 23 28 Energy Cannon 2 | . 3 . . Ballistic Gun 3 | . 5 . . Peak Build Rating 14 | 7 14 14 10 Average Rating 10 | 5 10 10 9 On Entrance 7 | . 7 14 10 Naked Turns . | . . . . Heaviest Build 26 | 14 26 26 26 Greatest Support 40 | 40 40 40 20 Greatest Overweight (x) 1 | . 1 1 1 Average Overweight (x) . | . . . 1 Largest Inventory Capacity 10 | 8 10 10 10 Average Capacity 9 | 7 9 10 10 Most Carried 10 | 8 10 10 5 Average Carried 8 | 4 9 8 5 Final Capacity 10 | 8 10 10 10 Final Carried 10 | 8 10 5 5 Class Distribution -------------------- 96% | Mutant 3% | Scavenger-Mutant Dominant Class ---------------- Mutant | -10/Materials Mutant | -10/Subcaves Mutant | -7/Recycling Resources | -11 -10 -10 -7 ----------- Run | Yrd Mat Sub Rec Matter Collected 633 | 252 285 96 . Remotely . | . . . . Salvage Created 1262 | 107 893 262 . Parts 55 | 4 40 11 . Haulers Intercepted 1 | . 1 . . Recyclers Shooed 3 | 1 2 . . Parts Field Recycled . | . . . . Retrieved Matter . | . . . . Parts Self-Destructed 6 | . . 6 . Prevented . | . . . . Kills | -11 -10 -10 -7 ------- Run | Yrd Mat Sub Rec Combat Hostiles Destroyed 26 | . 18 8 . Guns 19 | . 12 7 . Cannons 5 | . 5 . . Classes Destroyed 10 | 2 6 2 . Worker 1 | . 1 . . Tunneler 1 | 1 . . . Hauler 1 | . 1 . . Recycler 2 | 1 1 . . Operator 1 | . 1 . . Turret 2 | . . 2 . Watcher 2 | . 2 . . Swarmer 7 | . 3 4 . Grunt 15 | . 15 . . Subdweller 4 | . . 4 . Best Kill Streak 4 | 2 4 4 . Combat Bots Only 4 | . 3 4 . Max Kills in Single Turn 1 | 1 1 1 . Gunslinging . | . . . . Exploded . | . . . . Melee . | . . . . Uniques/NPCs Destroyed . | . . . . Combat | -11 -10 -10 -7 -------- Run | Yrd Mat Sub Rec Hostile Shots Fired 226 | . 79 129 18 Missed 65 | . 14 40 11 Hits 161 | . 65 89 7 Projectile 161 | . 65 89 7 Critical Strikes 1 | . . 1 . Damage Taken 1732 | . 677 1001 54 Core 254 | . 153 90 11 Absorbed by Shields . | . . . . Core Remaining (%) 100 | 100 . . . Volleys Fired 121 | 7 73 41 . Largest 2 | 2 2 2 . Hottest 130 | 70 130 130 . Shots Fired 218 | 14 125 79 . Gun 191 | 14 98 79 . Cannon 27 | . 27 . . Launcher . | . . . . Special . | . . . . Kinetic 34 | 7 27 . . Thermal 146 | 7 60 79 . Explosive . | . . . . Electromagnetic 38 | . 38 . . Robot Hit Streak 14 | 4 12 14 . Robot Miss Streak 5 | 4 5 2 . Penetration Max . | . . . . Secondary Targets 3 | . 1 2 . Max Gunslinging Chain 1 | . 1 1 . Shots Hit Robots 142 | 7 84 51 . Core Hits 57 | 3 38 16 . Critical Kills . | . . . . Critical Parts Destroyed . | . . . . Critical Strikes 7 | 2 1 4 . Burn 7 | 2 1 4 . Melee Attacks . | . . . . Impact . | . . . . Slashing . | . . . . Piercing . | . . . . Sneak Attacks . | . . . . Combat Hostiles . | . . . . Follow-up Attacks . | . . . . Damage Inflicted 2304 | 89 1399 816 . Guns 1893 | 89 988 816 . Cannons 355 | . 355 . . Explosions 56 | . 56 . . Melee . | . . . . Ramming . | . . . . Kinetic 232 | 39 193 . . Thermal 1496 | 50 630 816 . Explosive . | . . . . Electromagnetic 576 | . 576 . . Impact . | . . . . Slashing . | . . . . Piercing . | . . . . Highest Corruption 1 | . 1 1 1 Average Corruption 1 | . 1 1 1 Corruption Purged . | . . . . Corruption Blocked . | . . . . Effects 10 | . 6 4 . Message Errors 3 | . 2 1 . Matter Fused 3 | . 2 1 . Energy Discharges 1 | . 1 . . Data Loss (minor) 1 | . 1 . . Data Loss (major) 1 | . . 1 . Misfires 1 | . . 1 . Overload Shots . | . . . . Overflow Damage . | . . . . Projectiles . | . . . . Explosions . | . . . . Melee . | . . . . Knockbacks . | . . . . Impact . | . . . . Kinetic . | . . . . Secondary . | . . . . Self-Inflicted Damage 4 | . 4 . . Shots 1 | . 1 . . Rammed . | . . . . Targets Rammed . | . . . . Kicked . | . . . . Crushed . | . . . . Highest Temperature 336 | 36 336 317 . Average Temperature 107 | 15 106 124 . Received Heat Transfer 705 | . 255 432 18 Effects 3 | . 2 1 . Energy Bleed 2 | . 1 1 . Interference 1 | . 1 . . Siege Activations . | . . . . Martial Activations . | . . . . Shielding Activations . | . . . . Robots Disrupted . | . . . . Combat Hostiles . | . . . . Robots Corrupted 1 | . 1 . . Combat Hostiles 1 | . 1 . . Parts Fried 3 | . 3 . . Impact Corruptions . | . . . . Robots Melted 1 | . . 1 . Combat Hostiles 1 | . . 1 . Parts Melted 5 | 1 2 2 . Heat Transferred 4035 | 296 1482 2257 . Parts Sabotaged . | . . . . Parts Stolen . | . . . . Parts Stripped . | . . . . Power Chain Reactions 1 | . 1 . . Alert | -11 -10 -10 -7 ------- Run | Yrd Mat Sub Rec Maximum Alert Level . | . . . . Low Security (%) 100 | 100 100 . 100 Level 1 . | . . . . Level 2 . | . . . . Level 3 . | . . . . Level 4 . | . . . . Level 5 . | . . . . High Security . | . . . . Max Security . | . . . . Peak Influence 131 | 10 131 . 41 Initial 41 | . . . 41 Average 50 | . 56 . 20 Influence Increases 722 | 10 547 165 . Destroy 0b10 Robot/C 480 | . 360 120 . Destroy 0b10 Robot/NC 40 | 10 30 . . Destroy Leader 86 | . 86 . . Successful Hack 5 | . 5 . . Destroy Structure 6 | . 6 . . Lose Combat Pursuer 105 | . 60 45 . Influence Decreases 722 | 10 434 191 87 Entered New Map 101 | . . 55 46 Time Decay 582 | 10 434 98 40 Lost Part 39 | . . 38 1 Squads Dispatched 5 | . 5 . . Investigation 3 | . 3 . . Extermination . | . . . . Reinforcement 2 | . 2 . . Assault . | . . . . Garrison . | . . . . Intercept . | . . . . Searches Triggered . | . . . . Construction Impeded . | . . . . Haulers Reinforced . | . . . . Active Scanning Responses . | . . . . Cargo Convoy Interrupts . | . . . . Stealth | -11 -10 -10 -7 --------- Run | Yrd Mat Sub Rec Distress Signals 2 | . 2 . . Communications Jammed . | . . . . Distress Signals . | . . . . Times Spotted 55 | . 39 14 2 Peak Tracking Total 6 | . 3 6 2 Tactical Retreats 10 | . 8 2 . Traps | -11 -10 -10 -7 ------- Run | Yrd Mat Sub Rec Traps Triggered 4 | . 4 . . Indirectly . | . . . . Trap Hack Attempts . | . . . . Triggered . | . . . . Disarmed . | . . . . Reprogrammed . | . . . . Reused . | . . . . Traps Extracted . | . . . . Installed . | . . . . Triggered . | . . . . Machines | -11 -10 -10 -7 ---------- Run | Yrd Mat Sub Rec Machines Disabled . | . . . . Max in Single Turn . | . . . . Machines Repaired . | . . . . Machines Dismantled . | . . . . Machines Sabotaged . | . . . . Overloaded Fab Kills . | . . . . Hacking | -11 -10 -10 -7 --------- Run | Yrd Mat Sub Rec Machines Accessed 6 | . 6 . . Terminals 4 | . 4 . . Fabricators . | . . . . Repair Stations . | . . . . Recycling Units 2 | . 2 . . Scanalyzers . | . . . . Garrison Access . | . . . . Total Hacks 13 | . 13 . . Successful 4 | . 4 . . Failed 9 | . 9 . . Catastrophic 5 | . 5 . . Database Lockouts . | . . . . Manual 4 | . 4 . . Terminals 11 | . 11 . . Fabricators . | . . . . Repair Stations . | . . . . Recycling Units 2 | . 2 . . Scanalyzers . | . . . . Garrison Access . | . . . . Terminal Hacks 3 | . 3 . . Surveillance Status 1 | . 1 . . Transport Status 1 | . 1 . . Hauler Manifests 1 | . 1 . . Fabricator Hacks . | . . . . Repair Station Hacks . | . . . . Recycling Unit Hacks 1 | . 1 . . Retrieve Components 1 | . 1 . . Scanalyzer . | . . . . Garrison Access Hacks . | . . . . Unauthorized Hacks . | . . . . Terminals . | . . . . Fabricators . | . . . . Repair Stations . | . . . . Recycling Units . | . . . . Scanalyzers . | . . . . Garrison Access . | . . . . Data Cores Recovered . | . . . . Used . | . . . . Hacking Detections 5 | . 5 . . Full Trace Events 1 | . 1 . . Feedback Events . | . . . . Feedback Blocked . | . . . . Robot Schematics Acquired . | . . . . Robots Built . | . . . . Authchips . | . . . . Time . | . . . . Total Robot Build Rating . | . . . . Part Schematics Acquired . | . . . . Parts Built . | . . . . Authchips . | . . . . Time . | . . . . Total Part Build Rating . | . . . . Parts Repaired . | . . . . Time . | . . . . Parts Recycled . | . . . . Recycled Matter . | . . . . Retrieved Matter . | . . . . Retrieved Components 10 | . 10 . . Parts Scanalyzed . | . . . . Part Schematics Acquired . | . . . . Parts Damaged . | . . . . Bothacking | -11 -10 -10 -7 ------------ Run | Yrd Mat Sub Rec Used RIF Installer . | . . . . Robots Hacked . | . . . . Non-combat . | . . . . Combat . | . . . . Robot Hacks Applied . | . . . . Relay Couplers Released . | . . . . Fabnet Peak Effective % . | . . . . Robots Rewired . | . . . . Allies Hacked . | . . . . Hacks Repelled . | . . . . Allies | -11 -10 -10 -7 -------- Run | Yrd Mat Sub Rec Total Allies . | . . . . Largest Group . | . . . . Highest-Rated Group . | . . . . Highest-Rated Ally . | . . . . Total Orders . | . . . . Ally Attacks . | . . . . Total Damage . | . . . . Kills . | . . . . Allies Corrupted . | . . . . Allies Melted . | . . . . Intel | -11 -10 -10 -7 ------- Run | Yrd Mat Sub Rec Active Infowar (turns) 644 | . 644 . . ECM 644 | . 644 . . Robot Analysis Total . | . . . . Derelict Logs Recovered 1 | . . 1 . Drone Launches . | . . . . Drone Recoveries . | . . . . Exploration | -11 -10 -10 -7 ------------- Run | Yrd Mat Sub Rec Turns Passed 2537 | 139 1767 530 101 Spaces Moved 1212 | 64 916 195 37 Core 1 | 1 . . . Treads 721 | 63 489 132 37 Legs 490 | . 427 63 . Wheels . | . . . . Hover . | . . . . Flight . | . . . . Fastest Speed 50 | 50 120 120 240 Average Speed 152 | 158 141 185 240 Slowest Speed 240 | 160 190 240 240 Overloaded Moves . | . . . . Propulsion Burnouts . | . . . . Robots Hopped . | . . . . Potential Cave-ins . | . . . . Cave-ins Triggered . | . . . . Exploration Rate (%) 31 | 5 90 22 10 Regions Visited 3 Branch Regions 2 Pre-discovered Areas 1 | . . 1 . Known Exits Taken . | . . . . Unknown Exits Taken 3 | 1 1 1 . Scrap Searched 1 | . . 1 . Spaces Dug . | . . . . Terrain Destroyed 2 | . 2 . . Melee . | . . . . Projectile . | . . . . AOE 2 | . 2 . . Terrain Rammed . | . . . . Walls Destroyed . | . . . . Machines Disabled . | . . . . Actions | -11 -10 -10 -7 --------- Run | Yrd Mat Sub Rec Total 1682 | 84 1264 285 49 Wait 273 | . 223 38 12 Move 1209 | 63 915 194 37 Hop . | . . . . Pick Up 29 | 7 21 1 . Fast Attach 9 | 6 3 . . Attach 6 | . . 6 . Detach . | . . . . Swap 17 | 1 12 4 . Drop 18 | . 17 1 . Fire 121 | 7 73 41 . Melee . | . . . . Ram . | . . . . Kick . | . . . . Crush . | . . . . Escape Stasis . | . . . . Rewire . | . . . . Trap . | . . . . Miscellaneous . | . . . . Route ------- -11/Scrapyard -10/Materials (discovered 5 exits: [*Mat x2] / [*Min x2] / [*Sub]) -10/Subcaves -7/Recycling History --------- Turn | Location | Event 38 | -11/Scrapyard | Discovered new exit (range 15) 140 | -11/Scrapyard | Entered Materials 141 | -10/Materials | Met a group of wandering Federalists 268 | -10/Materials | Discovered new exit (range 13) 317 | -10/Materials | Build established: Mutant 533 | -10/Materials | Discovered new exit (range 6) 1207 | -10/Materials | Discovered new exit (range 9) 1476 | -10/Materials | Discovered new exit (range 10) 1726 | -10/Materials | Core integrity fell below 50% 1777 | -10/Materials | Discovered new exit (range 4) 1907 | -10/Materials | Entered Subcaves 1908 | -10/Subcaves | Continued accompanying wandering Federalists (6) 2005 | -10/Subcaves | Ambushed by angry Subdweller bent on revenge 2055 | -10/Subcaves | Lost 4 allies 2317 | -10/Subcaves | Discovered new exit (range 14) 2320 | -10/Subcaves | Core integrity fell below 20% 2437 | -10/Subcaves | Entered Recycling 2438 | -7/Recycling | Met a Zionite searching for Scraptown 2538 | -7/Recycling | Destroyed by Y-54 Guardian with Flak Gun Last Messages --------------- Autobeam Turret suffers critical hit (Burn). Autobeam Turret destroyed. Switching to secondary target: Autobeam Turret. Lgt. Treads destroyed. Autobeam Turret destroyed. Acquired 4 matter. TXBF6ZQKQ PLTS C DOHLY LOCATION=UNKNOWN GOAL=ESCAPE CK-WMR(z): "You there! You wouldn't happen to know where Scraptown is, do you?" CK-WMR(z): "I've heard great things about that place, but almost no one seems to know where to find it, only that you access it somewhere from Recycling here." CK-WMR(z): "Anyway I've been here searching too long already, time to slink back to the caves before I'm caught. You'd best do the same." Y-54 Guardian springs to life. Ion Engine destroyed. Map ----- +----------------------------------------------------+ | ??????????????????????????????? | | ??????????????????????????????? | | ??????????????????????????????? | | ??????????????????????????????? | | ??????????????????????????????? | | ??????????????????????????????? | | ??????????????????????????????? | | ??????????????????????????????? | | ??????????????????????????????? | | ??????????????????????????????? | | ?????????? ???????????????????? | | ????????## ??????????????????? | | ??????##Y#Y##?????????????????? | | ?????? #?????????????????? | | ?????? #?????????????????? | | ?????? #?????????????????? | | ?????# #+##+#????????????? | | ?????# #????????????? | | ?????# #????????????? | | ????## ?????????????? | | ????!! ???????????????? | | ????? ?????????????????? | | ????? ???????????????????? | | ?????# ?????????????????????? | | ?????# #??????????????????????? | | ?????#@#??????????????????????? | | ?????# #??????????????????????? | | ?????# #??????????????????????? | | ?????# #??????????????????????? | | ?????# #??????????????????????? | | ?????# #??????????????????????? | | ?????# #??????????????????????? | | ?????# #??????????????????????? | | ?????# #??????????????????????? | | ?????# #??????????????????????? | | ??####+########???????????????? | | ??# #???????????????? | | ??# #???????????????? | | ??# #???????????????? | | ??# +???????????????? | | ??# #???????????????? | | ??# #???????????????? | | ??# #???????????????? | | ??# #???????????????? | | ?## #???????????????? | | ?# #???????????????? | | ?## #???????????????? | | ?# #???????????????? | | ?#####+########???????????????? | | ???### #??????????? ??????????? | +----------------------------------------------------+ Best States ------------- Heat Dissipation 39 Energy Generation 10 Energy Capacity 250 Matter Stores 300 Matter Capacity 450 Sight Range 16 Terrain Scan Density 10 ECM Strength 1 Armor Coverage 150 Evasion (%) 55 Recoil Reduction 2 Item Schematics ----------------- None Robot Schematics ------------------ None Fabricated ------------ Nothing Repaired ---------- Nothing Alien Tech Used ----------------- None Achievements -------------- None Challenges ------------ None Game ------ Seed HardcellChainPit Manual? 0 Play Time 00:29:16 Cumulative 22.9 hours Start 2025.08.03 @ 11:26:34 End 2025.08.03 @ 11:55:32 Sessions 1 Manual Loads 0 Difficulty Rogue Special Mode None Game No. 23 Rogue 23 Adventurer 0 Explorer 0 Win Type - Total 0 Types 0/0/0/0/0/0/0/0/0/0 Lore% 18 Gallery% 17 Achievement% 17 Wizard Run 0 Options --------- Layout 1 ASCII 0 Keyboard 0 Movement Mouse Keybinds 0 Fullscreen 1 Font 24/Smallcaps Map View 50x35 Zoom Use 0% Tactical HUD 0 Map Filters NONE Filters NONE Steam 1 RUN: eba1bdc2-8275-4d3a-962e-8d01f8cdbe2c